bitfinex/quotes_BTCUSD_20240810
["timestamp","ask_amount","ask_price","bid_price","bid_amount"]
[1723254986133,0.020832,60585.0,60584.0,1.51384661]
[1723254986540,0.020832,60585.0,60584.0,1.51584661]
[1723254987196,0.020832,60585.0,60584.0,1.50384661]
[1723254987398,0.020832,60585.0,60584.0,1.59299507]
[1723254987574,0.020832,60585.0,60584.0,1.50384661]
[1723254992982,0.020832,60585.0,60584.0,1.02872661]
[1723254996545,0.020832,60585.0,60584.0,1.51464661]
[1723254996873,0.020832,60585.0,60584.0,1.60416549]
[1723254997733,0.020832,60585.0,60584.0,1.51464661]
[1723254998087,0.020832,60585.0,60584.0,1.60881701]
[1723254998637,0.020832,60585.0,60584.0,1.59881701]
[1723254999191,0.020832,60585.0,60584.0,1.60881701]
[1723254999393,0.020832,60585.0,60584.0,1.61081701]
[1723254999620,0.020832,60585.0,60584.0,1.60881701]
[1723254999773,0.020832,60585.0,60584.0,1.59881701]
[1723255001129,0.020832,60585.0,60584.0,1.60881701]
[1723255002237,0.020832,60585.0,60584.0,1.61077336]
[1723255003164,0.020832,60585.0,60584.0,1.71077336]
[1723255003601,0.020832,60585.0,60584.0,1.76017033]
[1723255005588,0.020832,60585.0,60584.0,1.74817033]
[1723255005794,0.020832,60585.0,60584.0,1.86127033]
[1723255005995,0.020832,60585.0,60584.0,1.87127033]
[1723255006405,0.020832,60585.0,60584.0,1.82187336]
[1723255008120,0.020832,60585.0,60584.0,1.87130275]
[1723255008289,0.020832,60585.0,60584.0,1.82187336]
[1723255009379,0.020832,60585.0,60584.0,1.81187336]
[1723255009584,0.020832,60585.0,60584.0,1.86130394]
[1723255010125,0.020832,60585.0,60584.0,1.87130394]
[1723255010535,0.020832,60585.0,60584.0,1.83392708]
[1723255010910,0.020832,60585.0,60584.0,1.90335766]
[1723255011186,0.020832,60585.0,60584.0,1.80923091]
[1723255011302,0.020832,60585.0,60584.0,1.9028949]
[1723255012057,0.020832,60585.0,60584.0,1.88890677]
[1723255012283,0.020832,60585.0,60584.0,1.83947619]
[1723255012521,0.020832,60585.0,60584.0,1.8394243]
[1723255012725,0.020832,60585.0,60584.0,1.8534243]
[1723255012865,0.020832,60585.0,60584.0,1.75980033]
[1723255013067,0.020832,60585.0,60584.0,1.85342431]
[1723255013929,0.020832,60585.0,60584.0,1.95221825]
[1723255014275,0.020832,60585.0,60584.0,2.66221825]
[1723255014895,0.020832,60585.0,60584.0,2.99233825]
[1723255015252,0.020832,60585.0,60584.0,2.99242597]
[1723255015795,0.020832,60585.0,60584.0,2.89871427]
[1723255016930,0.020832,60585.0,60584.0,2.56859427]
[1723255017133,0.020832,60585.0,60584.0,2.66230533]
[1723255018098,0.020832,60585.0,60584.0,2.89871427]
[1723255018302,0.020832,60585.0,60584.0,2.56859427]
[1723255018558,0.020832,60585.0,60584.0,2.89871427]
[1723255018767,0.020832,60585.0,60584.0,2.56859427]
[1723255018967,0.020832,60585.0,60584.0,2.63468227]
[1723255019821,0.020832,60585.0,60584.0,2.73262999]
[1723255020772,0.020832,60585.0,60584.0,2.7326068]
[1723255021904,0.020832,60585.0,60584.0,2.5975068]
[1723255022108,0.020832,60585.0,60584.0,2.70798185]
[1723255022351,0.020832,60585.0,60584.0,2.63381286]
[1723255023283,0.020832,60585.0,60584.0,2.73271278]
[1723255023457,0.020832,60585.0,60584.0,2.73264428]
[1723255023662,0.020832,60585.0,60584.0,3.06276428]
[1723255023865,0.020832,60585.0,60584.0,3.11048926]
[1723255024069,0.020832,60585.0,60584.0,3.03341283]
[1723255024270,0.020832,60585.0,60584.0,2.99049955]
[1723255024428,0.020832,60585.0,60584.0,3.08846379]
[1723255025496,0.020832,60585.0,60584.0,3.07446379]
[1723255025696,0.020832,60585.0,60584.0,3.08846379]
[1723255026619,0.020832,60585.0,60584.0,3.07446379]
[1723255027367,0.020832,60585.0,60584.0,3.08846379]
[1723255027577,0.020832,60585.0,60584.0,2.99049955]
[1723255027914,0.020832,60585.0,60584.0,3.08862577]
[1723255028239,0.020832,60585.0,60584.0,3.08862612]
[1723255028988,0.020832,60585.0,60584.0,3.08862325]
[1723255030104,0.020832,60585.0,60584.0,3.41874325]
[1723255030337,0.020832,60585.0,60584.0,3.58998447]
[1723255030518,0.020832,60585.0,60584.0,3.58998333]
[1723255030695,0.020832,60585.0,60584.0,3.56798333]
[1723255030897,0.020832,60585.0,60584.0,3.58998333]
[1723255031116,0.020832,60585.0,60584.0,3.40844586]
[1723255031322,0.020832,60585.0,60584.0,3.57968594]
[1723255032219,0.020832,60585.0,60584.0,3.40844586]
[1723255033036,0.020832,60585.0,60584.0,3.07832586]
[1723255033603,0.020832,60585.0,60584.0,3.13337569]
[1723255034047,0.020832,60585.0,60584.0,3.00982866]
[1723255034640,0.020832,60585.0,60584.0,2.92199983]
[1723255034841,0.020832,60585.0,60584.0,3.00926561]
[1723255035805,0.020832,60585.0,60584.0,2.98626561]
[1723255037728,0.020832,60585.0,60584.0,2.88636561]
[1723255037902,0.020832,60585.0,60584.0,2.84683183]
[1723255038152,0.020832,60585.0,60584.0,2.78740561]
[1723255038386,0.020832,60585.0,60584.0,2.78709344]
[1723255038615,0.020832,60585.0,60584.0,2.86123006]
[1723255039094,0.020832,60585.0,60584.0,2.85923006]
[1723255039321,0.020832,60585.0,60584.0,2.86123006]
[1723255039560,0.020832,60585.0,60584.0,2.78709344]
[1723255040107,0.020832,60585.0,60584.0,2.774295]
[1723255040392,0.020832,60585.0,60584.0,2.78668048]
[1723255041220,0.020832,60585.0,60584.0,2.88557122]
[1723255041600,0.020832,60585.0,60584.0,2.78668048]
[1723255041818,0.020832,60585.0,60584.0,2.76886339]
[1723255042018,0.020832,60585.0,60584.0,2.13882389]
[1723255042219,0.020832,60585.0,60584.0,2.13882357]
[1723255042412,0.020832,60585.0,60584.0,2.06464098]
[1723255044444,0.020832,60585.0,60584.0,2.17353172]
[1723255044619,0.020832,60585.0,60584.0,2.16353172]
[1723255044822,0.020832,60585.0,60584.0,2.17353172]
[1723255045196,0.020832,60585.0,60584.0,2.07464098]
[1723255045551,0.020832,60585.0,60584.0,2.08703057]
[1723255045906,0.020832,60585.0,60584.0,2.16282572]
[1723255046913,0.020832,60585.0,60584.0,2.15282572]
[1723255048296,0.020832,60585.0,60584.0,1.82270572]
[1723255048502,0.020832,60585.0,60584.0,1.83270572]
[1723255048713,0.020832,60585.0,60584.0,1.82270572]
[1723255048924,0.020832,60585.0,60584.0,1.74691057]
[1723255049074,0.020832,60585.0,60584.0,1.83230065]
[1723255049283,0.020832,60585.0,60584.0,1.80761974]
[1723255049484,0.020832,60585.0,60584.0,1.83230457]
[1723255050742,0.020832,60585.0,60584.0,1.83430457]
[1723255051346,0.020832,60585.0,60584.0,1.82230457]
[1723255052471,0.020832,60585.0,60584.0,1.82362143]
[1723255053553,0.020832,60585.0,60584.0,1.79894053]
[1723255053966,0.020832,60585.0,60584.0,1.72473069]
[1723255054983,0.020832,60585.0,60584.0,1.79894189]
[1723255056025,0.020832,60585.0,60584.0,1.79882102]
[1723255056649,0.020832,60585.0,60584.0,1.79874191]
[1723255058083,0.083932,60585.0,60584.0,1.02957331]
[1723255058921,0.083932,60585.0,60584.0,1.01557331]
[1723255059344,0.020832,60585.0,60584.0,1.01557331]
[1723255059748,0.020832,60585.0,60584.0,1.00157331]
[1723255059935,0.020832,60585.0,60584.0,1.02957331]
[1723255064700,0.020832,60585.0,60584.0,1.01557331]
[1723255065299,0.020832,60585.0,60584.0,1.02957331]
[1723255065506,0.020832,60585.0,60584.0,1.00157331]
[1723255065889,0.020832,60585.0,60584.0,1.02957331]
[1723255066099,0.020832,60585.0,60584.0,1.01557331]
[1723255066300,0.020832,60585.0,60584.0,1.00157331]
[1723255066979,0.020832,60585.0,60584.0,1.01557331]
[1723255067935,0.020832,60585.0,60584.0,1.02957331]
[1723255068394,0.020832,60585.0,60584.0,1.00157331]
[1723255068535,0.020832,60585.0,60584.0,1.01557331]
[1723255068736,0.020832,60585.0,60584.0,1.02957331]
[1723255071106,0.020832,60585.0,60584.0,1.35969331]
[1723255071323,0.020832,60585.0,60584.0,1.42489331]
[1723255071559,0.020832,60585.0,60584.0,1.39689331]
[1723255071760,0.020832,60585.0,60584.0,1.41089331]
[1723255071988,0.020832,60585.0,60584.0,1.42489331]
[1723255072194,0.020832,60585.0,60584.0,1.41089331]
[1723255073383,0.020832,60585.0,60584.0,1.39689331]
[1723255073600,0.020832,60585.0,60584.0,1.41089331]
[1723255074769,0.020832,60585.0,60584.0,1.35969331]
[1723255074953,0.020832,60585.0,60584.0,1.34569331]
[1723255075605,0.020832,60585.0,60584.0,1.35969331]
[1723255076081,0.020832,60585.0,60584.0,1.34569331]
[1723255076529,0.020832,60585.0,60584.0,1.35969331]
[1723255080506,0.020832,60585.0,60584.0,1.36969331]
[1723255080744,0.020832,60585.0,60584.0,1.58789903]
[1723255081440,0.020832,60585.0,60584.0,1.56389903]
[1723255081673,0.020832,60585.0,60584.0,1.67699903]
[1723255081915,0.020832,60585.0,60584.0,1.69099903]
[1723255082155,0.020832,60585.0,60584.0,1.58849331]
[1723255082387,0.020832,60585.0,60584.0,1.69069553]
[1723255082819,0.020832,60585.0,60584.0,1.67669553]
[1723255083271,0.020832,60585.0,60584.0,1.69069553]
[1723255085332,0.020832,60585.0,60584.0,1.61649331]
[1723255085535,0.020832,60585.0,60584.0,1.6906981]
[1723255088393,0.020832,60585.0,60584.0,1.6766981]
[1723255088601,0.020832,60585.0,60584.0,1.6626981]
[1723255088772,0.020832,60585.0,60584.0,1.6906981]
[1723255089552,0.020832,60585.0,60584.0,1.69052409]
[1723255092871,0.020832,60585.0,60584.0,1.54682409]
[1723255093092,0.020832,60585.0,60584.0,1.21670409]
[1723255094039,0.020832,60585.0,60584.0,1.21650729]
[1723255095243,0.098232,60585.0,60584.0,0.11436087]
[1723255095443,0.158332,60585.0,60584.0,0.20558689]
[1723255095645,0.158332,60585.0,60584.0,0.53570689]
[1723255097462,0.158332,60585.0,60584.0,1.14274181]
[1723255097661,0.020832,60585.0,60584.0,1.14274181]
[1723255101573,0.020832,60585.0,60584.0,1.27021155]
[1723255102107,0.020832,60585.0,60584.0,1.192241]
[1723255102302,0.020832,60585.0,60584.0,1.27021175]
[1723255102924,0.020832,60585.0,60584.0,1.192241]
[1723255103176,0.020832,60585.0,60584.0,1.27021822]
[1723255103584,0.020832,60585.0,60584.0,1.27025482]
[1723255103821,0.020832,60585.0,60584.0,1.1922776]
[1723255104346,0.020832,60585.0,60584.0,1.27022127]
[1723255104555,0.020832,60585.0,60584.0,1.14274181]
[1723255104756,0.020832,60585.0,60584.0,1.19228624]
[1723255104981,0.020832,60585.0,60584.0,1.220646]
[1723255105690,0.020832,60585.0,60584.0,1.19228602]
[1723255105894,0.020832,60585.0,60584.0,1.07918602]
[1723255106513,0.164932,60585.0,60584.0,1.07918602]
[1723255106723,0.164932,60585.0,60584.0,0.0900711]
[1723255106927,0.660103,60585.0,60584.0,0.03739576]
[1723255107249,1.44694265,60585.0,60584.0,0.0289152]
[1723255107587,1.44694265,60585.0,60584.0,0.0149152]
[1723255107775,1.44694265,60585.0,60584.0,0.0289152]
[1723255107971,1.44694265,60585.0,60584.0,0.0149152]
[1723255108197,1.45730795,60585.0,60584.0,0.0009152]
[1723255108539,1.45730795,60585.0,60584.0,0.0149152]
[1723255108909,1.45730795,60585.0,60584.0,0.0009152]
[1723255110712,1.12719395,60585.0,60584.0,0.0009152]
[1723255111932,0.990217,60585.0,60584.0,0.0009152]
[1723255112213,1.12728766,60585.0,60584.0,0.0009152]
[1723255115599,0.990217,60585.0,60584.0,0.0009152]
[1723255115726,1.12728963,60585.0,60584.0,0.0009152]
[1723255119313,1.45740262,60585.0,60584.0,0.0009152]
[1723255122902,1.45740696,60585.0,60584.0,0.0009152]
[1723255126341,1.45740193,60585.0,60584.0,0.0009152]
[1723255126691,1.320331,60585.0,60584.0,0.0009152]
[1723255126926,1.45740283,60585.0,60584.0,0.0009152]
[1723255127874,1.45740263,60585.0,60584.0,0.0009152]
[1723255130151,1.45740262,60585.0,60584.0,0.0009152]
[1723255130558,1.31330262,60585.0,60584.0,0.0009152]
[1723255131506,1.39460262,60585.0,60584.0,0.0009152]
[1723255131678,1.45650262,60585.0,60584.0,0.0009152]
[1723255133506,1.56960262,60585.0,60584.0,0.0009152]
[1723255135893,2.86893569,60585.0,60584.0,0.0009152]
[1723255136044,2.32501078,60585.0,60584.0,0.0009152]
[1723255136244,2.3651638,60585.0,60584.0,0.0009152]
[1723255136444,2.3751638,60585.0,60584.0,0.0009152]
[1723255137109,2.3661638,60585.0,60584.0,0.0029152]
[1723255137310,2.3761638,60585.0,60584.0,0.0029152]
[1723255137438,2.3761638,60585.0,60584.0,0.0019152]
[1723255137660,2.82332914,60585.0,60584.0,0.0019152]
[1723255138242,1.505589,60582.0,60581.0,0.0009152]
[1723255138443,2.43171663,60582.0,60581.0,0.0009152]
[1723255138759,2.45625914,60582.0,60581.0,0.0009152]
[1723255139352,2.35878286,60582.0,60581.0,0.0009152]
[1723255139749,2.79039014,60582.0,60581.0,0.0019152]
[1723255140197,2.49569419,60582.0,60581.0,0.0009152]
[1723255140397,2.4953824,60582.0,60581.0,0.0009152]
[1723255140593,2.18010346,60582.0,60581.0,0.0009152]
[1723255140795,2.49225321,60582.0,60581.0,0.0009152]
[1723255141089,2.18410346,60582.0,60581.0,0.0019152]
[1723255141217,2.50423446,60582.0,60581.0,0.0019152]
[1723255141428,2.49923446,60582.0,60581.0,0.0019152]
[1723255141814,2.51123446,60582.0,60581.0,0.0029152]
[1723255142263,2.47915267,60582.0,60581.0,0.0019152]
[1723255142470,2.17710346,60582.0,60581.0,0.0019152]
[1723255142771,2.19110346,60582.0,60581.0,0.0029152]
[1723255143224,2.0695699,60582.0,60581.0,0.0029152]
[1723255143406,2.20668349,60582.0,60581.0,0.0029152]
[1723255143795,2.45386377,60582.0,60581.0,0.0029152]
[1723255144308,2.38094781,60582.0,60581.0,0.0029152]
[1723255144518,2.45386377,60582.0,60581.0,0.0029152]
[1723255144899,2.44386377,60582.0,60581.0,0.0029152]
[1723255145171,2.3811714,60582.0,60581.0,0.0029152]
[1723255145376,2.3711714,60582.0,60581.0,0.0029152]
[1723255145579,2.3811714,60582.0,60581.0,0.0029152]
[1723255145992,2.0695699,60582.0,60581.0,0.0029152]
[1723255146209,2.3810938,60582.0,60581.0,0.0029152]
[1723255146438,2.45400976,60582.0,60581.0,0.0029152]
[1723255146645,2.3810938,60582.0,60581.0,0.0029152]
[1723255147023,2.45400976,60582.0,60581.0,0.0029152]
[1723255147219,2.3810938,60582.0,60581.0,0.0029152]
[1723255147455,2.45400976,60582.0,60581.0,0.0029152]
[1723255147650,2.3810938,60582.0,60581.0,0.0029152]
[1723255148399,2.45400976,60582.0,60581.0,0.0029152]
[1723255148862,2.3810938,60582.0,60581.0,0.0029152]
[1723255149030,2.45408848,60582.0,60581.0,0.0029152]
[1723255149657,2.47831571,60582.0,60581.0,0.0029152]
[1723255150220,2.18109728,60582.0,60581.0,0.0029152]
[1723255150428,2.38108633,60582.0,60581.0,0.0029152]
[1723255150630,2.4197009,60582.0,60581.0,2e-07]
[1723255150834,2.4197009,60582.0,60571.0,0.0009152]
[1723255150835,1.330447,60572.0,60571.0,0.0009152]
[1723255151028,2.27207525,60572.0,60571.0,0.0009152]
[1723255151231,2.37207525,60572.0,60571.0,0.0009152]
[1723255151429,2.19766821,60572.0,60571.0,0.0009152]
[1723255151694,2.25470543,60572.0,60571.0,0.0009152]
[1723255152191,2.25470487,60572.0,60571.0,0.0009152]
[1723255152394,2.33373942,60572.0,60571.0,0.0009152]
[1723255152598,2.20366821,60572.0,60571.0,0.0009152]
[1723255152817,2.53885321,60572.0,60571.0,0.0009152]
[1723255153014,2.81078279,60572.0,60571.0,0.0009152]
[1723255153207,2.71337574,60572.0,60571.0,0.0009152]
[1723255153420,2.83513455,60572.0,60571.0,0.0009152]
[1723255153816,2.83541435,60572.0,60571.0,0.0009152]
[1723255154193,2.71365554,60572.0,60571.0,0.0009152]
[1723255155061,2.1217749,60572.0,60571.0,0.0009152]
[1723255155299,2.01087725,60572.0,60571.0,0.0009152]
[1723255155628,1.88375656,60572.0,60571.0,0.0009152]
[1723255155828,2.02087388,60572.0,60571.0,0.0009152]
[1723255156148,2.02087554,60572.0,60571.0,0.0009152]
[1723255156758,2.04387554,60572.0,60571.0,0.0009152]
[1723255157604,2.04387419,60572.0,60571.0,0.0009152]
[1723255158845,2.21167419,60572.0,60571.0,0.0009152]
[1723255159074,2.34167664,60572.0,60571.0,0.0009152]
[1723255159274,2.42498265,60572.0,60571.0,0.0009152]
[1723255159473,1.94077419,60572.0,60571.0,0.0009152]
[1723255159636,2.05387419,60572.0,60571.0,0.0009152]
[1723255160033,2.04887419,60572.0,60571.0,0.0009152]
[1723255160234,2.05887419,60572.0,60571.0,0.0009152]
[1723255160441,2.08087419,60572.0,60571.0,0.0019152]
[1723255160976,2.07482007,60572.0,60571.0,0.0019152]
[1723255161149,2.37858704,60572.0,60571.0,0.0019152]
[1723255161354,2.02655656,60572.0,60571.0,0.0029152]
[1723255161563,2.33352392,60572.0,60571.0,0.0029152]
[1723255161757,2.30952392,60572.0,60571.0,0.0009152]
[1723255162165,2.33752392,60572.0,60571.0,0.0029152]
[1723255162386,2.71960892,60572.0,60571.0,0.0019152]
[1723255162586,2.70560892,60572.0,60571.0,0.0009152]
[1723255162807,2.71960892,60572.0,60571.0,0.0019152]
[1723255163363,2.73360892,60572.0,60571.0,0.0029152]
[1723255164249,0.01,60565.0,60564.0,0.0009152]
[1723255164395,2.40530883,60565.0,60564.0,0.0009152]
[1723255164599,2.69830828,60565.0,60564.0,0.00973772]
[1723255164804,2.69830828,60565.0,60564.0,0.0009152]
[1723255165199,2.69803416,60565.0,60564.0,0.0009152]
[1723255165421,2.70703416,60565.0,60564.0,0.0019152]
[1723255165817,2.69803416,60565.0,60564.0,0.0009152]
[1723255166042,2.06451116,60565.0,60564.0,0.0833152]
[1723255166258,2.00875391,60565.0,60564.0,0.1491152]
[1723255166684,2.00775391,60565.0,60564.0,0.1491152]
[1723255166931,1.99975391,60565.0,60564.0,0.1481152]
[1723255167135,1.50571599,60565.0,60564.0,0.1481152]
[1723255167354,1.50429867,60565.0,60564.0,0.1481152]
[1723255168169,1.51421092,60565.0,60564.0,0.1481152]
[1723255168370,1.53021092,60565.0,60564.0,0.1501152]
[1723255168595,1.52321092,60565.0,60564.0,0.1491152]
[1723255168768,1.51421092,60565.0,60564.0,0.1481152]
[1723255168966,1.51921092,60565.0,60564.0,0.1481152]
[1723255169170,1.31111092,60565.0,60564.0,0.1491152]
[1723255169415,1.16578,60565.0,60564.0,0.1491152]
[1723255169589,1.30141194,60565.0,60564.0,0.1491152]
[1723255169786,1.29641194,60565.0,60564.0,0.1491152]
[1723255170017,0.96118894,60565.0,60564.0,0.1481152]
[1723255170221,0.63496594,60565.0,60564.0,0.1481152]
[1723255170422,0.63896594,60565.0,60564.0,0.1481152]
[1723255170881,0.503334,60565.0,60564.0,0.1481152]
[1723255171211,0.829557,60565.0,60564.0,0.1481152]
[1723255171601,0.825557,60565.0,60564.0,0.1481152]
[1723255171800,0.495334,60565.0,60564.0,0.1481152]
[1723255172135,0.495334,60565.0,60564.0,0.1501152]
[1723255172336,0.495334,60565.0,60564.0,0.1491152]
[1723255172540,0.825557,60565.0,60564.0,0.1481152]
[1723255172739,0.496334,60565.0,60564.0,0.1541152]
[1723255172943,0.96176478,60565.0,60564.0,0.1541152]
[1723255173325,0.96176478,60565.0,60564.0,0.1591152]
[1723255173966,0.826557,60565.0,60564.0,0.1591152]
[1723255174165,0.96205568,60565.0,60564.0,0.1591152]
[1723255174364,0.96105568,60565.0,60564.0,0.1531152]
[1723255174748,0.496334,60565.0,60564.0,0.1541152]
[1723255174978,0.496334,60565.0,60564.0,0.1591152]
[1723255175398,0.826557,60565.0,60564.0,0.1591152]
[1723255184255,0.95762979,60565.0,60564.0,0.1591152]
[1723255186220,0.95760061,60565.0,60564.0,0.1591152]
[1723255186425,0.826557,60565.0,60564.0,0.1591152]
[1723255186620,0.95768587,60565.0,60564.0,0.1591152]
[1723255186944,0.826557,60565.0,60564.0,0.1591152]
[1723255187121,0.95768632,60565.0,60564.0,0.1591152]
[1723255188134,1.28790932,60565.0,60564.0,0.1591152]
[1723255188363,0.95768632,60565.0,60564.0,0.1591152]
[1723255188775,0.826557,60565.0,60564.0,0.1591152]
[1723255188947,1.28787085,60565.0,60564.0,0.1591152]
[1723255189599,1.28787085,60565.0,60564.0,0.0119152]
[1723255189826,1.4010947,60565.0,60564.0,0.0119152]
[1723255190652,1.26998,60565.0,60564.0,0.0119152]
[1723255190893,1.40116326,60565.0,60564.0,0.0119152]
[1723255191093,1.40117252,60565.0,60564.0,0.0119152]
[1723255193667,1.47907252,60565.0,60564.0,0.0119152]
[1723255193869,1.71593656,60565.0,60564.0,0.0119152]
[1723255194071,2.19350927,60565.0,60564.0,0.0069152]
[1723255194313,2.19356371,60565.0,60564.0,0.0069152]
[1723255194511,2.19256371,60565.0,60564.0,0.0009152]
[1723255195037,2.20276001,60565.0,60564.0,0.0009152]
[1723255195193,2.25971621,60565.0,60564.0,0.0009152]
[1723255195391,2.23112333,60565.0,60564.0,0.0009152]
[1723255195611,2.39579651,60565.0,60564.0,0.0009152]
[1723255195824,2.38579651,60565.0,60564.0,0.0009152]
[1723255196689,2.38179651,60565.0,60564.0,0.0009152]
[1723255196805,2.38579651,60565.0,60564.0,0.0009152]
[1723255197005,2.39479651,60565.0,60564.0,0.0019152]
[1723255197266,2.61224621,60565.0,60564.0,0.0009152]
[1723255197469,2.44809651,60565.0,60564.0,0.0009152]
[1723255197671,2.45809651,60565.0,60564.0,0.0019152]
[1723255197897,2.35037975,60565.0,60564.0,0.0019152]
[1723255198027,2.45806886,60565.0,60564.0,0.0019152]
[1723255198459,2.45808167,60565.0,60564.0,0.0019152]
[1723255198876,2.45798593,60565.0,60564.0,0.0019152]
[1723255199084,2.29336373,60565.0,60564.0,0.0019152]
[1723255199346,2.16203451,60565.0,60564.0,0.0019152]
[1723255199540,2.22850932,60565.0,60564.0,0.0019152]
[1723255199740,1.64088632,60565.0,60564.0,0.0019152]
[1723255199988,1.66325631,60565.0,60564.0,0.1425152]
[1723255200317,1.58345603,60565.0,60564.0,0.1425152]
[1723255200531,1.47025603,60565.0,60564.0,0.1425152]
[1723255200743,1.58345603,60565.0,60564.0,0.1425152]
[1723255200949,1.37025603,60565.0,60564.0,0.15782745]
[1723255201076,0.63670835,60565.0,60564.0,0.15782745]
[1723255201280,0.96693135,60565.0,60564.0,0.15782745]
[1723255201621,0.835557,60565.0,60564.0,0.15782745]
[1723255203477,0.835557,60565.0,60563.0,0.009152]
[1723255203478,0.91454215,60565.0,60522.0,0.16702795]
[1723255203668,0.91454215,60565.0,60498.0,0.6921175]
[1723255203669,0.03,60492.0,60490.0,0.07428896]
[1723255203886,0.340797,60460.0,60459.0,0.09903658]
[1723255204165,0.340797,60460.0,60459.0,0.1132]
[1723255204166,0.496195,60460.0,60459.0,0.1132]
[1723255204371,0.28163643,60492.0,60457.0,0.0651]
[1723255204372,0.01,60458.0,60457.0,0.0651]
[1723255204580,0.01,60463.0,60457.0,0.131336]
[1723255204807,0.07298728,60488.0,60458.0,0.08953334]
[1723255204808,0.01,60467.0,60458.0,0.08953334]
[1723255205007,0.01,60467.0,60466.0,0.1132]
[1723255205213,0.01,60465.0,60451.0,0.0001]
[1723255205414,0.01,60458.0,60457.0,0.0773]
[1723255205680,0.01,60465.0,60457.0,0.69031992]
[1723255205875,0.01,60470.0,60462.0,0.165391]
[1723255206075,0.01,60474.0,60467.0,0.165379]
[1723255206438,0.01,60474.0,60464.0,0.2838]
[1723255206439,0.01,60473.0,60464.0,0.2838]
[1723255206566,0.01,60468.0,60464.0,0.2838]
[1723255206770,0.00081165,60465.0,60464.0,0.2838]
[1723255207422,0.00081165,60465.0,60464.0,0.3838]
[1723255207770,0.00081165,60465.0,60464.0,0.3848]
[1723255207974,0.00081165,60465.0,60464.0,0.54861492]
[1723255208242,0.00081165,60465.0,60464.0,0.71400192]
[1723255208607,0.00081165,60465.0,60464.0,0.71300192]
[1723255209885,0.00081165,60465.0,60464.0,1.04377692]
[1723255210085,0.00181165,60465.0,60464.0,1.04977692]
[1723255210435,0.00181165,60465.0,60464.0,0.71900192]
[1723255210637,0.00281165,60465.0,60464.0,0.72200192]
[1723255211018,0.01281165,60465.0,60464.0,0.72200192]
[1723255211228,0.00281165,60465.0,60464.0,0.72200192]
[1723255211567,0.00281165,60465.0,60464.0,0.009]
[1723255211775,0.34201057,60465.0,60464.0,0.009]
[1723255211947,0.19962657,60465.0,60464.0,0.009]
[1723255212871,0.36501057,60465.0,60464.0,0.009]
[1723255213120,1.72881757,60465.0,60464.0,0.009]
[1723255213250,1.82881757,60465.0,60464.0,0.009]
[1723255213677,1.84881757,60465.0,60464.0,0.009]
[1723255213910,1.82881757,60465.0,60464.0,0.009]
[1723255214237,0.516228,60456.0,60451.0,0.0001]
[1723255214466,1.45468092,60456.0,60451.0,0.0001]
[1723255214666,1.79549992,60456.0,60451.0,0.0001]
[1723255214945,1.46468092,60456.0,60451.0,0.0001]
[1723255215511,1.46549257,60456.0,60451.0,0.0001]
[1723255215822,0.80385457,60456.0,60451.0,0.0001]
[1723255216157,1.13467357,60456.0,60451.0,0.0001]
[1723255216985,0.62503965,60456.0,60451.0,0.0001]
[1723255217145,0.61703965,60456.0,60451.0,0.0001]
[1723255217352,0.62103965,60456.0,60451.0,0.0001]
[1723255217739,1.13867357,60456.0,60451.0,0.0001]
[1723255217942,1.46349257,60456.0,60451.0,0.0001]
[1723255218351,1.81431157,60456.0,60451.0,0.0001]
[1723255218478,1.80431157,60456.0,60451.0,0.0001]
[1723255219529,1.81431157,60456.0,60451.0,0.0001]
[1723255219730,1.80431157,60456.0,60451.0,0.0001]
[1723255220480,1.80031157,60456.0,60451.0,0.0001]
[1723255220692,1.79631157,60456.0,60451.0,0.0001]
[1723255220942,1.47849257,60456.0,60451.0,0.0001]
[1723255221523,1.47849257,60456.0,60455.0,0.2009163]
[1723255221743,1.46849257,60456.0,60455.0,0.2009163]
[1723255221965,1.49149257,60456.0,60455.0,0.2009163]
[1723255222159,1.80931157,60456.0,60455.0,0.2009163]
[1723255222336,1.82931157,60456.0,60455.0,0.2009163]
[1723255222542,1.47849257,60456.0,60455.0,0.2009163]
[1723255223245,1.46549257,60456.0,60455.0,0.2009163]
[1723255223427,1.47749257,60456.0,60455.0,0.2009163]
[1723255223608,1.48449257,60456.0,60455.0,0.2009163]
[1723255223807,1.47249257,60456.0,60455.0,0.2009163]
[1723255224074,1.46049257,60456.0,60455.0,0.2009163]
[1723255224249,1.47149257,60456.0,60455.0,0.2009163]
[1723255224863,1.46949257,60456.0,60455.0,0.2009163]
[1723255225240,1.47949257,60456.0,60455.0,0.2009163]
[1723255225617,1.04321502,60456.0,60455.0,0.2009163]
[1723255225837,0.68939602,60456.0,60455.0,0.2009163]
[1723255226420,0.02981165,60456.0,60455.0,0.21085545]
[1723255226626,0.19522065,60456.0,60455.0,0.21085545]
[1723255226757,0.51603965,60456.0,60455.0,0.21085545]
[1723255226966,0.19522065,60456.0,60455.0,0.21085545]
[1723255227554,0.00081165,60456.0,60455.0,0.21085545]
[1723255227766,0.01081165,60456.0,60455.0,0.21085545]
[1723255227959,0.00181165,60456.0,60455.0,0.21085545]
[1723255228112,0.01181165,60456.0,60455.0,0.21085545]
[1723255228286,0.00381165,60456.0,60455.0,0.76739145]
[1723255228488,0.00381165,60456.0,60455.0,1.09821545]
[1723255228697,0.01381165,60456.0,60455.0,0.43656745]
[1723255228902,0.00881165,60456.0,60455.0,0.76739145]
[1723255229328,0.000833,60457.0,60456.0,0.496228]
[1723255229685,0.00964465,60457.0,60456.0,0.827047]
[1723255229835,0.00964465,60457.0,60456.0,0.83693905]
[1723255230038,0.000833,60457.0,60456.0,0.83693905]
[1723255230421,0.000833,60457.0,60456.0,1.41341943]
[1723255230624,0.000833,60457.0,60456.0,1.49221943]
[1723255231239,0.001833,60457.0,60456.0,1.49421943]
[1723255231393,0.001833,60457.0,60456.0,1.49521943]
[1723255231394,0.002833,60457.0,60456.0,1.49521943]
[1723255232092,0.00881165,60466.0,60465.0,0.826922]
[1723255232285,0.00881165,60472.0,60471.0,0.496105]
[1723255232488,0.00881165,60472.0,60471.0,1.217879]
[1723255232859,0.00881165,60472.0,60471.0,1.39139636]
[1723255232975,0.00881165,60476.0,60475.0,0.826787]
[1723255233387,0.18041558,60476.0,60475.0,0.00967486]
[1723255233798,0.00881165,60473.0,60472.0,0.244165]
[1723255234001,0.18041558,60473.0,60472.0,0.0788]
[1723255234420,0.17160393,60473.0,60472.0,0.244165]
[1723255234760,0.17541558,60473.0,60472.0,1.40017292]
[1723255235127,0.00881165,60473.0,60472.0,0.0788]
[1723255235331,0.001,60476.0,60473.0,0.165361]
[1723255235528,0.001,60476.0,60475.0,0.165357]
[1723255235729,0.001,60476.0,60474.0,0.165357]